[Event "Germany Countries-chT Youth 2022"]
[Site "Wiesbaden"]
[Date "2022.10.03"]
[Round "6"]
[White "Pflugradt, Natalie"]
[Black "Braun, Julian"]
[Result "1-0"]
[ECO "C50"]
[WhiteElo "1518"]
[BlackElo "1715"]
[Annotator "NA RC COMBH"]
[PlyCount "120"]
[EventDate "2022.09.28"]
[EventType "team-tourn"]
[EventRounds "7"]
[EventCountry "GER"]
[SourceTitle "playchess.com"]
[Source "ChessBase"]
[SourceQuality "1"]
[TimeControl "40/5400+30:1800+30"]

1. e4 {[%emt 0:00:04]} e5 {[%emt 0:00:01]} 2. Nf3 {[%emt 0:00:09]} Nc6 {[%emt 0:00:01]} 3. Bc4 {[%emt 0:00:07]} Nf6 {[%emt 0:00:05]} 4. d3 {[%emt 0:00:06]} Bc5 {[%emt 0:00:05]} 5. c3 {[%emt 0:00:11]} O-O {[%emt 0:00:04]} 6. O-O {[%emt 0:01:12]} d5 {[%emt 0:00:05]} 7. exd5 {[%emt 0:01:48]} Nxd5 {[%emt 0:00:01]} 8. h3 {[%emt 0:11:45]} Nb6 {[%emt 0:01:09]} 9. Bb3 {[%emt 0:03:56]} Bf5 {[%emt 0:03:02]} 10. Nxe5 {[%emt 0:13:07]} Nxe5 {[%emt 0:00:59]} 11. d4 {[%emt 0:02:35]} Bd3 {[%emt 0:04:07]} 12. Re1 {[%emt 0:01:35]} Bxd4 {[%emt 0:01:11]} 13. cxd4 {[%emt 0:00:30]} Qxd4 {[%emt 0:00:57]} 14. Nc3 {[%emt 0:05:38]} Rad8 {[%emt 0:03:34]} 15. Be3 {[%emt 0:07:19]} Qd6 {[%emt 0:04:20]} 16. Bf4 {[%emt 0:03:46]} Rfe8 {[%emt 0:08:08]} 17. Rc1 {[%emt 0:06:38]} Qf6 {[%emt 0:06:33]} 18. Bxe5 {[%emt 0:02:09]} Rxe5 {[%emt 0:01:05]} 19. Rxe5 {[%emt 0:00:37]} Qxe5 {[%emt 0:00:30]} 20. Qf3 {[%emt 0:01:10]} Bc4 {[%emt 0:07:06]} 21. Bxc4 {[%emt 0:03:03]} Nxc4 {[%emt 0:01:10]} 22. Qxb7 Qg5 {[%emt 0:03:40]} 23. Re1 {[%emt 0:05:03]} Ne5 {[%emt 0:04:06]} 24. Qe4 {[%emt 0:03:17]} Re8 {[%emt 0:08:33]} 25. Kh1 {[%emt 0:03:54]} Qe7 {[%emt 0:13:55]} 26. Re2 {[%emt 0:08:31]} Qe6 {[%emt 0:15:13]} 27. Qd4 {[%emt 0:05:25]} Qd6 {[%emt 0:05:14]} 28. Qxd6 {[%emt 0:04:57]} cxd6 {[%emt 0:00:03]} 29. f4 {[%emt 0:01:14]} f6 {[%emt 0:00:33]} 30. fxe5 {[%emt 0:01:14]} dxe5 {[%emt 0:00:02]} 31. Rd2 {[%emt 0:01:06]} Re7 {[%emt 0:00:38]} 32. Kg1 {[%emt 0:00:12]} Kf7 {[%emt 0:00:12]} 33. Kf2 {[%emt 0:00:09]} Ke6 {[%emt 0:00:40]} 34. Ne4 {[%emt 0:01:02]} Kf5 {[%emt 0:01:43]} 35. Kf3 {[%emt 0:00:37]} h5 {[%emt 0:00:46]} 36. Ke3 {[%emt 0:01:29]} Ke6 {[%emt 0:01:03]} 37. Nc5+ {[%emt 0:01:19]} Kf5 {[%emt 0:00:32]} 38. Rd7 {[%emt 0:00:56]} Re8 {[%emt 0:00:08]} 39. Rxa7 {[%emt 0:00:31]} Rc8 {[%emt 0:00:18]} 40. b4 {[%emt 0:00:28]} g5 {[%emt 0:00:37]} 41. a4 {[%emt 0:30:37]} g4 {[%emt 0:30:23]} 42. hxg4+ {[%emt 0:00:00]} hxg4 {[%emt 0:00:00]} 43. a5 {[%emt 0:00:00]} Kg5 {[%emt 0:00:00]} 44. Rg7+ {[%emt 0:00:00]} Kh4 {[%emt 0:00:00]} 45. Ne4 {[%emt 0:00:00]} Kh5 {[%emt 0:00:00]} 46. Nxf6+ {[%emt 0:00:00]} Kh6 {[%emt 0:00:00]} 47. Rxg4 {[%emt 0:00:00]} Rc6 {[%emt 0:00:00]} 48. Nd5 {[%emt 0:00:00]} Rc8 {[%emt 0:00:00]} 49. Rg6+ {[%emt 0:00:00]} Kh7 {[%emt 0:00:00]} 50. Re6 {[%emt 0:00:00]} Rc2 {[%emt 0:00:00]} 51. Rxe5 {[%emt 0:00:00]} Rxg2 {[%emt 0:00:00]} 52. Kf3 {[%emt 0:00:00]} Ra2 {[%emt 0:00:00]} 53. Re6 {[%emt 0:00:00]} Ra3+ {[%emt 0:00:00]} 54. Ke4 {[%emt 0:00:00]} Ra1 {[%emt 0:00:00]} 55. a6 {[%emt 0:00:00]} Re1+ {[%emt 0:00:00]} 56. Ne3 {[%emt 0:00:00]} Rb1 {[%emt 0:00:00]} 57. Rb6 {[%emt 0:00:00]} Ra1 {[%emt 0:00:00]} 58. Rb7+ {[%emt 0:00:00]} Kg6 {[%emt 0:00:00]} 59. a7 {[%emt 0:00:00]} Ra4 {[%emt 0:00:00]} 60. Kd5 {[%emt 0:00:00]} Kf6 {[%emt 0:00:00]} 1-0

[Event "Germany Countries-chT Youth 2022"]
[Site "Wiesbaden"]
[Date "2022.10.03"]
[Round "6"]
[White "Roessling, Laura Marie"]
[Black "Halas, Neele Zoe"]
[Result "0-1"]
[ECO "C50"]
[WhiteElo "1418"]
[BlackElo "1392"]
[Annotator "NA RC COMBH"]
[PlyCount "120"]
[EventDate "2022.09.28"]
[EventType "team-tourn"]
[EventRounds "7"]
[EventCountry "GER"]
[SourceTitle "playchess.com"]
[Source "ChessBase"]
[SourceQuality "1"]
[TimeControl "40/5400+30:1800+30"]

1. e4 {[%emt 0:00:03]} e5 {[%emt 0:00:03]} 2. Nf3 {[%emt 0:00:12]} Nc6 {[%emt 0:00:03]} 3. Bc4 {[%emt 0:00:12]} Be7 {[%emt 0:00:03]} 4. d4 {[%emt 0:00:37]} exd4 {[%emt 0:00:05]} 5. Nxd4 {[%emt 0:00:22]} Nf6 {[%emt 0:03:24]} 6. Nc3 {[%emt 0:01:46]} Bb4 {[%emt 0:01:02]} 7. Qd3 {[%emt 0:14:00]} Ne5 {[%emt 0:04:32]} 8. Qe2 {[%emt 0:14:25]} Bxc3+ {[%emt 0:00:48]} 9. bxc3 {[%emt 0:00:49]} Nxc4 {[%emt 0:00:20]} 10. Qxc4 {[%emt 0:00:40]} c6 {[%emt 0:13:07]} 11. O-O {[%emt 0:10:16]} O-O {[%emt 0:01:51]} 12. Bg5 {[%emt 0:03:44]} Re8 {[%emt 0:10:14]} 13. Rfe1 {[%emt 0:05:37]} h6 {[%emt 0:04:00]} 14. Bh4 {[%emt 0:03:40]} g5 {[%emt 0:02:05]} 15. e5 {[%emt 0:02:29]} d5 {[%emt 0:08:40]} 16. Qd3 {[%emt 0:06:48]} Ne4 {[%emt 0:02:13]} 17. Bg3 {[%emt 0:01:21]} c5 {[%emt 0:01:42]} 18. Nb5 {[%emt 0:02:41]} Bf5 {[%emt 0:01:36]} 19. Qf3 {[%emt 0:03:23]} Nxg3 {[%emt 0:01:43]} 20. Qxg3 {[%emt 0:00:12]} Bxc2 {[%emt 0:03:09]} 21. e6 {[%emt 0:01:04]} f5 {[%emt 0:15:12]} 22. Qe5 {[%emt 0:03:48]} Re7 {[%emt 0:06:05]} 23. Nd6 {[%emt 0:03:02]} Qc7 {[%emt 0:06:58]} 24. Qe2 {[%emt 0:02:53]} Qxd6 {[%emt 0:02:00]} 25. Qxc2 {[%emt 0:01:04]} Rf8 {[%emt 0:00:33]} 26. Qa4 {[%emt 0:02:04]} b6 {[%emt 0:00:25]} 27. Rad1 {[%emt 0:00:32]} Rfe8 {[%emt 0:01:49]} 28. g3 {[%emt 0:00:56]} Qc7 {[%emt 0:01:59]} 29. Rxd5 {[%emt 0:00:52]} f4 {[%emt 0:02:32]} 30. Qe4 {[%emt 0:03:25]} Rg7 {[%emt 0:02:00]} 31. Re5 {[%emt 0:01:50]} Qe7 {[%emt 0:00:35]} 32. Qc6 {[%emt 0:01:48]} fxg3 {[%emt 0:00:32]} 33. hxg3 {[%emt 0:00:26]} Rg6 {[%emt 0:00:12]} 34. Qf3 {[%emt 0:01:18]} Rf6 {[%emt 0:01:03]} 35. Qh5 {[%emt 0:00:22]} Kg7 {[%emt 0:00:44]} 36. Kg2 {[%emt 0:01:07]} Qf8 {[%emt 0:01:27]} 37. e7 {[%emt 0:00:47]} Rxf2+ {[%emt 0:00:08]} 38. Kh3 Qf7 {[%emt 0:00:52]} 39. Qg4 {[%emt 0:02:13]} Qxa2 {[%emt 0:02:08]} 40. R5e2 {[%emt 0:02:26]} Rxe2 {[%emt 0:00:15]} 41. Rxe2 {[%emt 0:30:19]} Qf7 {[%emt 0:30:46]} 42. Qd7 {[%emt 0:00:14]} Qh5+ {[%emt 0:00:21]} 43. Kg2 {[%emt 0:00:31]} Qxe2+ {[%emt 0:00:09]} 44. Kh3 {[%emt 0:00:38]} Qxe7 {[%emt 0:00:14]} 45. Qd1 {[%emt 0:00:40]} Qe6+ {[%emt 0:00:17]} 46. Kh2 {[%emt 0:01:02]} Qe2+ {[%emt 0:00:06]} 47. Qxe2 {[%emt 0:00:13]} Rxe2+ {[%emt 0:00:04]} 48. Kh3 {[%emt 0:00:18]} a5 {[%emt 0:00:20]} 49. c4 {[%emt 0:00:07]} a4 {[%emt 0:00:10]} 50. g4 {[%emt 0:00:27]} a3 {[%emt 0:00:11]} 51. Kg3 {[%emt 0:01:19]} a2 {[%emt 0:00:04]} 52. Kf3 {[%emt 0:00:12]} Rb2 {[%emt 0:00:12]} 53. Ke4 {[%emt 0:00:12]} a1=Q {[%emt 0:00:19]} 54. Kd5 {[%emt 0:00:24]} Qh1+ {[%emt 0:00:29]} 55. Kd6 {[%emt 0:00:18]} b5 {[%emt 0:00:31]} 56. Kxc5 {[%emt 0:01:32]} bxc4 {[%emt 0:00:36]} 57. Kd4 {[%emt 0:00:21]} Qd1+ {[%emt 0:00:24]} 58. Kc5 {[%emt 0:00:21]} c3 {[%emt 0:00:32]} 59. Kc4 {[%emt 0:00:23]} c2 {[%emt 0:00:12]} 60. Kc3 {[%emt 0:00:23]} c1=Q# {[%emt 0:00:13]} 0-1

[Event "Germany Countries-chT Youth 2022"]
[Site "Wiesbaden"]
[Date "2022.10.03"]
[Round "6"]
[White "Kellner, Anton"]
[Black "Goepfert, Gregor"]
[Result "1/2-1/2"]
[ECO "D30"]
[WhiteElo "1382"]
[BlackElo "1480"]
[Annotator "NA RC COMBH"]
[PlyCount "90"]
[EventDate "2022.09.28"]
[EventType "team-tourn"]
[EventRounds "7"]
[EventCountry "GER"]
[SourceTitle "playchess.com"]
[Source "ChessBase"]
[SourceQuality "1"]
[TimeControl "40/5400+30:1800+30"]

1. d4 {[%emt 0:00:02]} d5 {[%emt 0:00:20]} 2. c4 {[%emt 0:00:07]} e6 {[%emt 0:00:02]} 3. Nf3 {[%emt 0:00:09]} Nf6 {[%emt 0:00:37]} 4. Bg5 {[%emt 0:00:06]} h6 {[%emt 0:00:50]} 5. Bh4 {[%emt 0:00:06]} Bb4+ {[%emt 0:03:17]} 6. Nc3 {[%emt 0:00:17]} dxc4 {[%emt 0:01:34]} 7. e3 {[%emt 0:01:09]} b5 {[%emt 0:00:44]} 8. Be2 {[%emt 0:07:38]} Bb7 {[%emt 0:02:01]} 9. O-O {[%emt 0:01:27]} c6 {[%emt 0:01:31]} 10. Qc2 {[%emt 0:06:01]} O-O {[%emt 0:03:11]} 11. Ne4 {[%emt 0:03:57]} Be7 {[%emt 0:00:57]} 12. Bxf6 {[%emt 0:19:10]} Bxf6 13. Nc5 {[%emt 0:00:55]} Qc7 {[%emt 0:01:33]} 14. Nd2 {[%emt 0:03:14]} Nd7 {[%emt 0:05:30]} 15. Nxb7 {[%emt 0:08:38]} Qxb7 {[%emt 0:00:11]} 16. Ne4 {[%emt 0:00:08]} Be7 {[%emt 0:00:32]} 17. Bf3 {[%emt 0:01:29]} Rac8 {[%emt 0:12:21]} 18. Rab1 {[%emt 0:05:23]} Qb6 {[%emt 0:03:55]} 19. Rfd1 {[%emt 0:03:52]} Rfd8 {[%emt 0:03:52]} 20. b3 {[%emt 0:05:27]} cxb3 {[%emt 0:01:40]} 21. Rxb3 {[%emt 0:00:36]} c5 {[%emt 0:03:59]} 22. Qb2 {[%emt 0:04:06]} a6 {[%emt 0:04:10]} 23. Rbd3 {[%emt 0:07:55]} c4 {[%emt 0:01:12]} 24. R3d2 {[%emt 0:00:26]} b4 {[%emt 0:03:14]} 25. Rc2 {[%emt 0:02:48]} a5 {[%emt 0:02:58]} 26. Rdc1 {[%emt 0:02:58]} c3 {[%emt 0:06:38]} 27. Qb3 {[%emt 0:00:25]} Qa7 {[%emt 0:00:35]} 28. a4 {[%emt 0:06:02]} Nb6 {[%emt 0:01:47]} 29. Be2 {[%emt 0:02:19]} Rd7 {[%emt 0:03:37]} 30. Rd1 {[%emt 0:01:54]} Rcd8 {[%emt 0:01:50]} 31. f4 {[%emt 0:01:42]} Nd5 {[%emt 0:01:57]} 32. Kf2 {[%emt 0:00:55]} Bh4+ {[%emt 0:01:26]} 33. g3 {[%emt 0:01:24]} Be7 {[%emt 0:00:07]} 34. Bb5 {[%emt 0:01:12]} Rc7 {[%emt 0:00:46]} 35. Kf3 {[%emt 0:00:37]} Qb7 {[%emt 0:01:24]} 36. Bd3 {[%emt 0:02:07]} Nf6 {[%emt 0:00:19]} 37. Rb1 {[%emt 0:01:10]} Qa8 {[%emt 0:00:44]} 38. Rd1 {[%emt 0:00:17]} g5 {[%emt 0:01:30]} 39. h3 {[%emt 0:00:51]} Qc6 {[%emt 0:02:48]} 40. Rcc1 {[%emt 0:00:57]} Rcd7 {[%emt 0:03:02]} 41. Qc2 {[%emt 0:02:13]} Kh8 {[%emt 0:04:51]} 42. Kf2 {[%emt 0:03:08]} Nxe4+ {[%emt 0:02:29]} 43. Bxe4 {[%emt 0:00:19]} Qb6 {[%emt 0:01:03]} 44. Qb3 {[%emt 0:02:13]} gxf4 {[%emt 0:02:21]} 45. gxf4 {[%emt 0:01:06]} Bf6 1/2-1/2

[Event "Germany Countries-chT Youth 2022"]
[Site "Wiesbaden"]
[Date "2022.10.03"]
[Round "6"]
[White "Mukazhanov, Mansur"]
[Black "Basovskiy, Jana"]
[Result "0-1"]
[ECO "B10"]
[WhiteElo "1319"]
[BlackElo "1858"]
[Annotator "NA RC COMBH"]
[PlyCount "78"]
[EventDate "2022.09.28"]
[EventType "team-tourn"]
[EventRounds "7"]
[EventCountry "GER"]
[SourceTitle "playchess.com"]
[Source "ChessBase"]
[SourceQuality "1"]
[TimeControl "40/5400+30:1800+30"]

1. e4 {[%emt 0:00:02]} c6 {[%emt 0:00:05]} 2. c4 {[%emt 0:00:20]} d5 {[%emt 0:01:54]} 3. cxd5 {[%emt 0:00:10]} cxd5 {[%emt 0:00:07]} 4. exd5 {[%emt 0:00:02]} Nf6 {[%emt 0:02:58]} 5. Nc3 {[%emt 0:00:09]} Nxd5 {[%emt 0:00:51]} 6. Nf3 {[%emt 0:00:08]} Nc6 {[%emt 0:02:29]} 7. Bb5 {[%emt 0:00:25]} e6 {[%emt 0:07:03]} 8. Qa4 {[%emt 0:00:31]} Bd7 {[%emt 0:01:33]} 9. Nxd5 {[%emt 0:00:08]} exd5 {[%emt 0:00:22]} 10. O-O {[%emt 0:00:12]} Be7 {[%emt 0:01:49]} 11. d4 {[%emt 0:00:10]} O-O {[%emt 0:00:49]} 12. Be3 {[%emt 0:00:14]} a6 {[%emt 0:00:41]} 13. Bd3 {[%emt 0:00:16]} Nb4 {[%emt 0:00:45]} 14. Qb3 {[%emt 0:00:16]} Nxd3 {[%emt 0:00:11]} 15. Qxd3 {[%emt 0:00:17]} Bb5 {[%emt 0:00:06]} 16. Qd2 {[%emt 0:00:06]} Bxf1 {[%emt 0:00:14]} 17. Rxf1 {[%emt 0:00:07]} Rc8 {[%emt 0:00:26]} 18. Bg5 {[%emt 0:00:22]} Bxg5 {[%emt 0:00:51]} 19. Nxg5 {[%emt 0:00:05]} h6 {[%emt 0:00:26]} 20. Nf3 {[%emt 0:00:09]} Qc7 {[%emt 0:00:14]} 21. Ne5 {[%emt 0:00:08]} Qc2 {[%emt 0:00:41]} 22. Qb4 {[%emt 0:00:17]} Rc7 {[%emt 0:24:50]} 23. h3 {[%emt 0:00:33]} Rfc8 {[%emt 0:01:56]} 24. Qd6 {[%emt 0:00:58]} Qe4 {[%emt 0:01:45]} 25. Nf3 {[%emt 0:00:17]} Rc6 {[%emt 0:07:15]} 26. Qd7 {[%emt 0:01:19]} Rc1 {[%emt 0:00:35]} 27. Kh2 {[%emt 0:02:19]} Qf4+ {[%emt 0:00:25]} 28. Kg1 {[%emt 0:01:01]} Rxf1+ {[%emt 0:00:22]} 29. Kxf1 {[%emt 0:00:08]} Rc1+ {[%emt 0:00:19]} 30. Ne1 {[%emt 0:00:01]} Qe4 {[%emt 0:01:08]} 31. Qd8+ {[%emt 0:00:39]} Kh7 {[%emt 0:00:06]} 32. Qa5 {[%emt 0:00:19]} Qd3+ {[%emt 0:00:23]} 33. Kg1 {[%emt 0:00:18]} Qe2 {[%emt 0:00:07]} 34. Kh2 {[%emt 0:00:23]} Rxe1 {[%emt 0:01:18]} 35. Qxd5 {[%emt 0:00:24]} Qxf2 {[%emt 0:00:20]} 36. Qxb7 {[%emt 0:00:17]} Qf4+ {[%emt 0:00:19]} 37. g3 {[%emt 0:00:18]} Re2+ {[%emt 0:00:15]} 38. Kg1 {[%emt 0:00:12]} Qf2+ {[%emt 0:00:04]} 39. Kh1 {[%emt 0:00:06]} Qh2# {[%emt 0:00:05]} 0-1

[Event "Germany Countries-chT Youth 2022"]
[Site "Wiesbaden"]
[Date "2022.10.03"]
[Round "6"]
[White "Czaeczine, Paula"]
[Black "Noennig, Jakob"]
[Result "0-1"]
[ECO "C45"]
[WhiteElo "1304"]
[BlackElo "1540"]
[Annotator "NA RC COMBH"]
[PlyCount "72"]
[EventDate "2022.09.28"]
[EventType "team-tourn"]
[EventRounds "7"]
[EventCountry "GER"]
[SourceTitle "playchess.com"]
[Source "ChessBase"]
[SourceQuality "1"]
[TimeControl "40/5400+30:1800+30"]

1. e4 {[%emt 0:00:03]} e5 {[%emt 0:00:09]} 2. Nf3 {[%emt 0:00:05]} Nc6 {[%emt 0:00:08]} 3. d4 {[%emt 0:00:05]} exd4 {[%emt 0:00:09]} 4. Nxd4 {[%emt 0:00:08]} Bc5 {[%emt 0:00:34]} 5. Be3 {[%emt 0:00:06]} Qf6 {[%emt 0:00:31]} 6. c3 {[%emt 0:00:10]} Nge7 {[%emt 0:00:22]} 7. Bc4 {[%emt 0:00:17]} O-O {[%emt 0:00:51]} 8. O-O {[%emt 0:00:27]} b6 {[%emt 0:00:31]} 9. Kh1 {[%emt 0:18:32]} Bb7 {[%emt 0:04:05]} 10. f3 {[%emt 0:03:42]} Ne5 {[%emt 0:11:46]} 11. Be2 {[%emt 0:01:30]} d5 {[%emt 0:01:18]} 12. b4 {[%emt 0:10:53]} Bxd4 {[%emt 0:07:20]} 13. cxd4 {[%emt 0:00:11]} Nd7 {[%emt 0:01:48]} 14. e5 {[%emt 0:04:39]} Qe6 {[%emt 0:04:09]} 15. Nd2 {[%emt 0:05:14]} Nf5 {[%emt 0:02:02]} 16. Bf2 {[%emt 0:01:31]} a5 {[%emt 0:09:59]} 17. b5 {[%emt 0:03:51]} c6 {[%emt 0:01:13]} 18. bxc6 {[%emt 0:02:14]} Bxc6 {[%emt 0:00:39]} 19. f4 {[%emt 0:06:16]} b5 {[%emt 0:06:55]} 20. Rb1 {[%emt 0:04:41]} b4 {[%emt 0:01:45]} 21. Bg4 {[%emt 0:02:51]} Bb5 {[%emt 0:01:59]} 22. Re1 {[%emt 0:02:56]} Rfc8 {[%emt 0:08:43]} 23. a3 {[%emt 0:07:33]} Bd3 {[%emt 0:02:33]} 24. Ra1 {[%emt 0:01:27]} Bc2 {[%emt 0:00:46]} 25. Qe2 {[%emt 0:01:00]} b3 {[%emt 0:01:04]} 26. Rg1 {[%emt 0:09:07]} Nb6 {[%emt 0:02:37]} 27. Be1 {[%emt 0:04:50]} b2 {[%emt 0:02:51]} 28. Ra2 {[%emt 0:00:19]} b1=Q {[%emt 0:00:18]} 29. Nxb1 {[%emt 0:00:23]} Bxb1 {[%emt 0:00:08]} 30. Rb2 {[%emt 0:00:20]} Be4 {[%emt 0:00:33]} 31. Bf3 {[%emt 0:05:59]} Bxf3 {[%emt 0:01:12]} 32. Qxf3 {[%emt 0:00:20]} Nc4 {[%emt 0:00:10]} 33. Rb1 {[%emt 0:01:29]} Nxd4 {[%emt 0:01:04]} 34. Qd3 {[%emt 0:00:45]} Qf5 {[%emt 0:02:43]} 35. Rd1 {[%emt 0:02:00]} Qxd3 {[%emt 0:01:56]} 36. Rxd3 {[%emt 0:00:08]} Nc2 {[%emt 0:00:14]} 0-1

[Event "Germany Countries-chT Youth 2022"]
[Site "Wiesbaden"]
[Date "2022.10.03"]
[Round "6"]
[White "Rafikova, Ailin"]
[Black "Altmeyer, Hannah"]
[Result "1-0"]
[ECO "C54"]
[WhiteElo "1287"]
[BlackElo "728"]
[Annotator "NA RC COMBH"]
[PlyCount "99"]
[EventDate "2022.09.28"]
[EventType "team-tourn"]
[EventRounds "7"]
[EventCountry "GER"]
[SourceTitle "playchess.com"]
[Source "ChessBase"]
[SourceQuality "1"]
[TimeControl "40/5400+30:1800+30"]

1. e4 {[%emt 0:00:07]} e5 {[%emt 0:00:14]} 2. Nf3 {[%emt 0:00:07]} Nc6 {[%emt 0:00:17]} 3. Bc4 {[%emt 0:00:14]} Bc5 {[%emt 0:00:25]} 4. c3 {[%emt 0:00:21]} Nf6 {[%emt 0:00:33]} 5. d3 {[%emt 0:00:28]} O-O {[%emt 0:00:55]} 6. Nbd2 {[%emt 0:01:23]} Ng4 {[%emt 0:03:24]} 7. O-O {[%emt 0:01:56]} d6 {[%emt 0:04:51]} 8. h3 {[%emt 0:01:26]} Nf6 {[%emt 0:02:43]} 9. Re1 {[%emt 0:01:41]} Re8 {[%emt 0:00:38]} 10. Nf1 {[%emt 0:01:52]} h6 {[%emt 0:00:36]} 11. Ng3 {[%emt 0:01:28]} Na5 {[%emt 0:05:03]} 12. Bb5 {[%emt 0:02:45]} c6 {[%emt 0:00:33]} 13. Ba4 {[%emt 0:01:37]} Be6 {[%emt 0:02:11]} 14. b4 {[%emt 0:01:21]} Bb6 {[%emt 0:03:22]} 15. bxa5 {[%emt 0:01:22]} Bxa5 {[%emt 0:00:41]} 16. Bd2 {[%emt 0:02:01]} b5 {[%emt 0:07:02]} 17. Bb3 {[%emt 0:02:09]} Bd7 {[%emt 0:03:07]} 18. a4 {[%emt 0:06:19]} Bb6 {[%emt 0:01:13]} 19. axb5 {[%emt 0:02:56]} cxb5 {[%emt 0:01:12]} 20. Nh4 {[%emt 0:01:33]} Rf8 {[%emt 0:08:51]} 21. Ngf5 {[%emt 0:03:46]} Ne8 {[%emt 0:01:21]} 22. Ng6 {[%emt 0:01:09]} Bxf5 {[%emt 0:06:41]} 23. exf5 {[%emt 0:02:16]} Qf6 {[%emt 0:03:15]} 24. Nxf8 {[%emt 0:01:33]} Kxf8 {[%emt 0:00:25]} 25. Qf3 {[%emt 0:05:11]} Rc8 {[%emt 0:04:09]} 26. c4 {[%emt 0:03:10]} bxc4 {[%emt 0:02:37]} 27. Bxc4 {[%emt 0:01:07]} Rc7 {[%emt 0:02:04]} 28. Be3 {[%emt 0:02:45]} Bxe3 {[%emt 0:01:14]} 29. fxe3 {[%emt 0:01:31]} g6 {[%emt 0:02:57]} 30. fxg6 {[%emt 0:01:31]} Qxf3 {[%emt 0:00:36]} 31. gxf3 {[%emt 0:00:58]} fxg6 {[%emt 0:00:54]} 32. Ra2 {[%emt 0:01:06]} Ke7 {[%emt 0:06:39]} 33. Rea1 {[%emt 0:01:31]} Kf6 {[%emt 0:00:56]} 34. Rxa7 {[%emt 0:00:23]} Rc5 {[%emt 0:00:31]} 35. Rf7+ {[%emt 0:01:59]} Kg5 {[%emt 0:00:31]} 36. e4 {[%emt 0:03:08]} h5 {[%emt 0:00:42]} 37. Ra8 {[%emt 0:01:46]} Nc7 {[%emt 0:00:28]} 38. Rc8 {[%emt 0:01:37]} Rxc4 {[%emt 0:02:51]} 39. dxc4 {[%emt 0:00:26]} Na6 {[%emt 0:00:13]} 40. Rc6 {[%emt 0:01:49]} Nb4 {[%emt 0:00:22]} 41. Rxd6 {[%emt 0:30:23]} Nd3 {[%emt 0:30:25]} 42. Rxd3 {[%emt 0:00:21]} Kh6 {[%emt 0:00:40]} 43. c5 {[%emt 0:00:54]} Kg5 {[%emt 0:00:19]} 44. c6 {[%emt 0:00:33]} h4 {[%emt 0:00:10]} 45. c7 {[%emt 0:00:45]} Kh5 {[%emt 0:00:37]} 46. c8=Q {[%emt 0:00:45]} g5 {[%emt 0:00:10]} 47. Rh7+ {[%emt 0:00:14]} Kg6 {[%emt 0:01:51]} 48. Rd6+ {[%emt 0:00:31]} Kxh7 {[%emt 0:00:43]} 49. Qc7+ {[%emt 0:00:05]} Kh8 {[%emt 0:00:29]} 50. Rd8# 1-0

[Event "Germany Countries-chT Youth 2022"]
[Site "Wiesbaden"]
[Date "2022.10.03"]
[Round "6"]
[White "Struebel, Katharina"]
[Black "Richter, Johanna"]
[Result "0-1"]
[ECO "B34"]
[WhiteElo "1273"]
[BlackElo "1249"]
[Annotator "NA RC COMBH"]
[PlyCount "120"]
[EventDate "2022.09.28"]
[EventType "team-tourn"]
[EventRounds "7"]
[EventCountry "GER"]
[SourceTitle "playchess.com"]
[Source "ChessBase"]
[SourceQuality "1"]
[TimeControl "40/5400+30:1800+30"]

1. e4 {[%emt 0:00:02]} c5 {[%emt 0:00:05]} 2. Nf3 {[%emt 0:00:10]} Nc6 {[%emt 0:00:07]} 3. d4 {[%emt 0:00:10]} cxd4 {[%emt 0:00:05]} 4. Nxd4 {[%emt 0:00:09]} Nf6 {[%emt 0:00:09]} 5. Nc3 {[%emt 0:00:13]} e5 {[%emt 0:00:05]} 6. Ndb5 {[%emt 0:00:12]} d6 {[%emt 0:00:07]} 7. Nd5 {[%emt 0:00:16]} Nxd5 {[%emt 0:00:15]} 8. exd5 {[%emt 0:00:09]} Nb8 {[%emt 0:00:02]} 9. Qf3 {[%emt 0:00:58]} Be7 {[%emt 0:02:09]} 10. Qc3 {[%emt 0:00:24]} Na6 {[%emt 0:00:57]} 11. Be3 {[%emt 0:00:46]} Bd7 {[%emt 0:38:12]} 12. Nxa7 {[%emt 0:03:06]} Nc7 {[%emt 0:02:53]} 13. Bb6 {[%emt 0:01:13]} Nxd5 {[%emt 0:01:05]} 14. Bxd8 {[%emt 0:01:48]} Nxc3 {[%emt 0:00:06]} 15. Bxe7 {[%emt 0:00:43]} Kxe7 {[%emt 0:00:08]} 16. bxc3 {[%emt 0:00:46]} Rxa7 {[%emt 0:00:07]} 17. Bd3 h6 {[%emt 0:00:32]} 18. O-O {[%emt 0:01:23]} Rha8 {[%emt 0:00:39]} 19. Bc4 {[%emt 0:00:40]} Rc8 {[%emt 0:00:15]} 20. Bb3 {[%emt 0:01:41]} Rxc3 {[%emt 0:00:36]} 21. f4 {[%emt 0:00:57]} Be6 {[%emt 0:02:08]} 22. fxe5 {[%emt 0:04:17]} dxe5 {[%emt 0:00:21]} 23. Rf2 {[%emt 0:02:14]} Bxb3 {[%emt 0:00:22]} 24. cxb3 {[%emt 0:00:44]} Rxb3 {[%emt 0:00:27]} 25. Re2 {[%emt 0:02:32]} Rb5 {[%emt 0:00:29]} 26. Rae1 {[%emt 0:00:53]} f6 {[%emt 0:00:08]} 27. Rc2 {[%emt 0:00:36]} b6 {[%emt 0:03:10]} 28. Re3 {[%emt 0:01:21]} Rc5 {[%emt 0:01:17]} 29. Rb2 {[%emt 0:01:21]} b5 {[%emt 0:00:56]} 30. Rg3 {[%emt 0:01:08]} Ke6 {[%emt 0:01:26]} 31. Rgb3 {[%emt 0:00:59]} Kf7 {[%emt 0:03:53]} 32. Rxb5 {[%emt 0:03:57]} Rxb5 {[%emt 0:00:12]} 33. Rxb5 {[%emt 0:00:08]} Rxa2 {[%emt 0:00:06]} 34. Rb7+ {[%emt 0:00:30]} Kg6 {[%emt 0:00:02]} 35. Rb3 {[%emt 0:00:36]} e4 {[%emt 0:02:53]} 36. Re3 {[%emt 0:00:49]} f5 {[%emt 0:00:15]} 37. g4 {[%emt 0:00:22]} Rd2 {[%emt 0:01:42]} 38. gxf5+ {[%emt 0:01:15]} Kxf5 {[%emt 0:00:09]} 39. Rg3 {[%emt 0:01:01]} g6 {[%emt 0:01:25]} 40. Rh3 {[%emt 0:01:15]} h5 {[%emt 0:00:26]} 41. Kf1 {[%emt 0:30:48]} Rd3 {[%emt 0:30:31]} 42. Rh4 {[%emt 0:01:02]} Re3 {[%emt 0:01:54]} 43. Kf2 {[%emt 0:00:40]} Kg5 {[%emt 0:02:21]} 44. Kxe3 {[%emt 0:00:24]} Kxh4 {[%emt 0:00:04]} 45. Kxe4 {[%emt 0:00:24]} g5 {[%emt 0:00:17]} 46. Kf5 {[%emt 0:00:28]} g4 {[%emt 0:00:23]} 47. Kf4 {[%emt 0:00:31]} Kh3 {[%emt 0:00:09]} 48. Kg5 {[%emt 0:00:14]} Kxh2 {[%emt 0:00:18]} 49. Kxh5 {[%emt 0:00:08]} g3 {[%emt 0:00:03]} 50. Kg5 {[%emt 0:00:17]} g2 {[%emt 0:00:05]} 51. Kf4 {[%emt 0:00:08]} g1=Q {[%emt 0:00:10]} 52. Kf3 {[%emt 0:00:06]} Qe1 {[%emt 0:00:35]} 53. Kf4 {[%emt 0:00:04]} Qe2 {[%emt 0:00:33]} 54. Kf5 {[%emt 0:00:07]} Kg3 {[%emt 0:00:16]} 55. Kf6 {[%emt 0:00:09]} Kg4 {[%emt 0:00:28]} 56. Kf7 {[%emt 0:00:09]} Qe5 {[%emt 0:00:29]} 57. Kf8 {[%emt 0:00:14]} Qc7 {[%emt 0:00:09]} 58. Kg8 {[%emt 0:00:10]} Kg5 {[%emt 0:00:06]} 59. Kh8 {[%emt 0:00:11]} Kg6 {[%emt 0:00:13]} 60. Kg8 {[%emt 0:00:07]} Qg7# {[%emt 0:00:05]} 0-1